[Event "Late-Titled-Tuesday-Blitz-June-18-2024"]
[Site "Chess.com"]
[Date "2024.06.18"]
[Round "1"]
[White "Kaustubh_Kodihalli"]
[Black "juancruzarias"]
[Result "1-0"]
[WhiteElo "2360"]
[BlackElo "2633"]
[TimeControl "180+1"]
[EndTime "14:07:33 PDT"]
[Termination "Kaustubh_Kodihalli won by resignation"]

1. e4 {[%clk 0:03:00.5]} 1... c6 {[%clk 0:03:00]} 2. d4 {[%clk 0:03:00.4]} 2...
d5 {[%clk 0:03:00.5]} 3. e5 {[%clk 0:03:00.8]} 3... c5 {[%clk 0:02:54.6]} 4.
dxc5 {[%clk 0:03:00.4]} 4... e6 {[%clk 0:02:54.5]} 5. Nf3 {[%clk 0:02:57]} 5...
Bxc5 {[%clk 0:02:54.2]} 6. Bd3 {[%clk 0:02:56.2]} 6... f6 {[%clk 0:02:50.3]} 7.
O-O {[%clk 0:02:52.2]} 7... Nc6 {[%clk 0:02:50.4]} 8. Re1 {[%clk 0:02:51.7]}
8... fxe5 {[%clk 0:02:47]} 9. Nxe5 {[%clk 0:02:52.6]} 9... Nxe5 {[%clk
0:02:45.8]} 10. Rxe5 {[%clk 0:02:52.9]} 10... Bxf2+ {[%clk 0:02:43.3]} 11. Kh1
{[%clk 0:02:45.6]} 11... Qf6 {[%clk 0:02:43]} 12. Qe2 {[%clk 0:02:30.3]} 12...
Ne7 {[%clk 0:02:07]} 13. Bg5 {[%clk 0:02:26.8]} 13... Qf7 {[%clk 0:02:06.5]} 14.
Bxe7 {[%clk 0:02:15.7]} 14... Kxe7 {[%clk 0:02:07.4]} 15. Rxd5 {[%clk
0:02:13.5]} 15... Bb6 {[%clk 0:02:06.3]} 16. Nc3 {[%clk 0:02:07.5]} 16... Bd7
{[%clk 0:01:58.1]} 17. Re1 {[%clk 0:01:58.5]} 17... Rad8 {[%clk 0:01:38.1]} 18.
Re5 {[%clk 0:01:54.4]} 18... Bc8 {[%clk 0:01:33.5]} 19. Nd5+ {[%clk 0:01:45.8]}
19... Kd6 {[%clk 0:01:32.4]} 20. Nxb6 {[%clk 0:01:45.7]} 20... axb6 {[%clk
0:01:33.2]} 21. Qe3 {[%clk 0:01:43.3]} 21... Kc7 {[%clk 0:01:32.6]} 22. Bc4
{[%clk 0:01:37.7]} 22... Rd6 {[%clk 0:01:31.1]} 23. h3 {[%clk 0:01:35.6]} 23...
Rhd8 {[%clk 0:01:30.6]} 24. Bd3 {[%clk 0:01:28.2]} 24... g6 {[%clk 0:01:29.6]}
25. Rf1 {[%clk 0:01:25.8]} 25... Qe7 {[%clk 0:01:29.1]} 26. Qf4 {[%clk 0:01:24]}
26... Kb8 {[%clk 0:01:27.1]} 27. Qf7 {[%clk 0:01:18.5]} 27... Re8 {[%clk
0:01:26.2]} 28. Qxe7 {[%clk 0:01:15.1]} 28... Rxe7 {[%clk 0:01:27.1]} 29. Rf8
{[%clk 0:01:15.9]} 29... Kc7 {[%clk 0:01:27.4]} 30. Rf6 {[%clk 0:01:15.4]} 30...
Bd7 {[%clk 0:01:27.4]} 31. Kh2 {[%clk 0:01:15.5]} 31... Rd4 {[%clk 0:01:22.4]}
32. Kg3 {[%clk 0:01:14]} 32... Kd6 {[%clk 0:01:18.8]} 33. Re3 {[%clk 0:01:13.8]}
33... Kc7 {[%clk 0:01:17.2]} 34. Rf4 {[%clk 0:01:09.2]} 34... Rd6 {[%clk
0:01:14.7]} 35. Rf6 {[%clk 0:01:06]} 35... e5 {[%clk 0:01:14.1]} 36. Rxd6 {[%clk
0:01:03.9]} 36... Kxd6 {[%clk 0:01:15]} 37. Kh4 {[%clk 0:01:04.6]} 37... Bc6
{[%clk 0:01:15.2]} 38. g3 {[%clk 0:01:03.8]} 38... Rf7 {[%clk 0:01:14.2]} 39.
Kg5 {[%clk 0:01:03.6]} 39... Rf3 {[%clk 0:01:12.2]} 40. Rxf3 {[%clk 0:00:50.8]}
40... Bxf3 {[%clk 0:01:13.1]} 41. Bf1 {[%clk 0:00:51.2]} 41... h6+ {[%clk
0:00:54]} 42. Kxh6 {[%clk 0:00:38.5]} 42... e4 {[%clk 0:00:54.2]} 43. Kxg6
{[%clk 0:00:38.2]} 43... e3 {[%clk 0:00:54]} 44. h4 {[%clk 0:00:35.7]} 44... e2
{[%clk 0:00:46.4]} 45. Bxe2 {[%clk 0:00:35.6]} 45... Bxe2 {[%clk 0:00:47.3]} 46.
h5 {[%clk 0:00:36.3]} 46... Bd1 {[%clk 0:00:47.8]} 47. c3 {[%clk 0:00:36.2]}
47... Bc2+ {[%clk 0:00:48.3]} 48. Kg7 {[%clk 0:00:31.7]} 48... Ke5 {[%clk
0:00:40.8]} 49. h6 {[%clk 0:00:31.7]} 49... b5 {[%clk 0:00:39.4]} 50. h7 {[%clk
0:00:29.3]} 50... Bxh7 {[%clk 0:00:39.7]} 51. Kxh7 {[%clk 0:00:30.2]} 51... Kf5
{[%clk 0:00:40.6]} 52. Kg7 {[%clk 0:00:30.1]} 52... Ke4 {[%clk 0:00:39.6]} 53.
Kf6 {[%clk 0:00:28.5]} 53... Kd3 {[%clk 0:00:39.5]} 54. g4 {[%clk 0:00:29]}
54... Kc2 {[%clk 0:00:40.1]} 55. g5 {[%clk 0:00:29.5]} 55... Kxb2 {[%clk
0:00:40.7]} 56. g6 {[%clk 0:00:27.6]} 56... b4 {[%clk 0:00:41]} 57. cxb4 {[%clk
0:00:23.1]} 1-0

[Event "Late-Titled-Tuesday-Blitz-June-18-2024"]
[Site "Chess.com"]
[Date "2024.06.18"]
[Round "1"]
[White "invisible_s0ul"]
[Black "ellatambien"]
[Result "0-1"]
[WhiteElo "2398"]
[BlackElo "2721"]
[TimeControl "180+1"]
[EndTime "14:07:36 PDT"]
[Termination "ellatambien won by resignation"]

1. e4 {[%clk 0:02:59.1]} 1... e5 {[%clk 0:02:59.6]} 2. Nf3 {[%clk 0:02:59.1]}
2... Nc6 {[%clk 0:02:57.8]} 3. Bb5 {[%clk 0:02:58.8]} 3... Bc5 {[%clk
0:02:56.5]} 4. O-O {[%clk 0:02:55.2]} 4... Qf6 {[%clk 0:02:55.4]} 5. c3 {[%clk
0:02:51.7]} 5... Nge7 {[%clk 0:02:54.4]} 6. Na3 {[%clk 0:02:29.5]} 6... a6
{[%clk 0:02:52.5]} 7. Bxc6 {[%clk 0:02:25.6]} 7... Nxc6 {[%clk 0:02:50.4]} 8.
Nc2 {[%clk 0:02:26.1]} 8... d6 {[%clk 0:02:40.3]} 9. d4 {[%clk 0:02:26.4]} 9...
Ba7 {[%clk 0:02:40.1]} 10. Be3 {[%clk 0:02:13.5]} 10... Bg4 {[%clk 0:02:34.4]}
11. d5 {[%clk 0:02:08.9]} 11... Ne7 {[%clk 0:02:30.6]} 12. Bxa7 {[%clk
0:01:52.4]} 12... Rxa7 {[%clk 0:02:31.5]} 13. h3 {[%clk 0:01:52.2]} 13... Bxf3
{[%clk 0:02:27.7]} 14. Qxf3 {[%clk 0:01:51.8]} 14... Qxf3 {[%clk 0:02:28.1]} 15.
gxf3 {[%clk 0:01:52.7]} 15... O-O {[%clk 0:02:28.6]} 16. Ne3 {[%clk 0:01:48.3]}
16... f5 {[%clk 0:02:28]} 17. Kh2 {[%clk 0:01:47]} 17... Raa8 {[%clk 0:02:24.7]}
18. a4 {[%clk 0:01:38.9]} 18... Rf6 {[%clk 0:02:22.9]} 19. Nc4 {[%clk
0:01:29.2]} 19... Raf8 {[%clk 0:02:22.1]} 20. Kh1 {[%clk 0:01:26.7]} 20... fxe4
{[%clk 0:02:20.9]} 21. fxe4 {[%clk 0:01:27.6]} 21... Rxf2 {[%clk 0:02:21.3]} 22.
Kg1 {[%clk 0:01:23.2]} 22... Rxf1+ {[%clk 0:02:20.9]} 23. Rxf1 {[%clk
0:01:24.1]} 23... Rxf1+ {[%clk 0:02:21]} 24. Kxf1 {[%clk 0:01:25]} 24... Kf7
{[%clk 0:02:20.6]} 25. Ne3 {[%clk 0:01:25.5]} 25... g6 {[%clk 0:02:19.8]} 26.
Kf2 {[%clk 0:01:26.2]} 26... h5 {[%clk 0:02:19.6]} 27. Kg3 {[%clk 0:01:26.5]}
27... Ng8 {[%clk 0:02:19.5]} 28. h4 {[%clk 0:01:24.5]} 28... Nf6 {[%clk
0:02:19.6]} 29. Kf3 {[%clk 0:01:24.9]} 29... Ke7 {[%clk 0:02:16.3]} 30. c4
{[%clk 0:01:22.8]} 30... Kd7 {[%clk 0:02:16.4]} 31. b4 {[%clk 0:01:23.4]} 31...
c6 {[%clk 0:02:16.2]} 32. Nf1 {[%clk 0:01:04.7]} 32... cxd5 {[%clk 0:02:12.8]}
33. cxd5 {[%clk 0:01:00.8]} 33... Kc7 {[%clk 0:02:11]} 34. Ne3 {[%clk
0:00:58.8]} 34... Nd7 {[%clk 0:02:02.6]} 35. a5 {[%clk 0:00:31.8]} 35... b6
{[%clk 0:02:02.2]} 36. Nc4 {[%clk 0:00:28.6]} 36... bxa5 {[%clk 0:02:00.9]} 37.
bxa5 {[%clk 0:00:29.5]} 37... Nc5 {[%clk 0:01:59.9]} 38. Ke3 {[%clk 0:00:29.2]}
38... Kd7 {[%clk 0:01:58.3]} 39. Nb6+ {[%clk 0:00:28.4]} 39... Kc7 {[%clk
0:01:57.2]} 40. Nc4 {[%clk 0:00:28.8]} 40... Nb7 {[%clk 0:01:57.8]} 41. Kf3
{[%clk 0:00:26.7]} 41... Kd7 {[%clk 0:01:58.3]} 42. Ke3 {[%clk 0:00:27.3]} 42...
Ke7 {[%clk 0:01:58.9]} 43. Kf3 {[%clk 0:00:25.7]} 43... Kf6 {[%clk 0:01:59.4]}
44. Kg3 {[%clk 0:00:05.9]} 44... g5 {[%clk 0:01:56.5]} 45. Nb6 {[%clk
0:00:06.2]} 45... gxh4+ {[%clk 0:01:51.5]} 46. Kh3 {[%clk 0:00:05.9]} 46... Nc5
{[%clk 0:01:50.5]} 47. Nc8 {[%clk 0:00:05.2]} 47... Nxe4 {[%clk 0:01:49.8]} 48.
Kxh4 {[%clk 0:00:05.8]} 48... Kg6 {[%clk 0:01:46.9]} 49. Ne7+ {[%clk 0:00:03.4]}
49... Kf7 {[%clk 0:01:42.4]} 50. Nf5 {[%clk 0:00:02.8]} 50... Kf6 {[%clk
0:01:42.8]} 51. Ne3 {[%clk 0:00:02.2]} 51... Nc5 {[%clk 0:01:38.5]} 52. Kxh5
{[%clk 0:00:01.9]} 52... Nb3 {[%clk 0:01:36.6]} 53. Nc4 {[%clk 0:00:02.5]} 53...
Ke7 {[%clk 0:01:22.1]} 54. Kg5 {[%clk 0:00:02.6]} 54... Nd4 {[%clk 0:01:20.5]}
55. Kg4 {[%clk 0:00:02.5]} 55... Nb5 {[%clk 0:01:19.7]} 56. Kf3 {[%clk
0:00:02.9]} 56... Nc3 {[%clk 0:01:20.2]} 57. Nb6 {[%clk 0:00:02.8]} 57... Kf6
{[%clk 0:01:18.3]} 58. Ke3 {[%clk 0:00:03]} 58... Kf5 {[%clk 0:01:18.1]} 59. Kd3
{[%clk 0:00:03]} 59... Nb5 {[%clk 0:01:17.9]} 60. Nc8 {[%clk 0:00:03]} 60... e4+
{[%clk 0:01:18.1]} 61. Ke3 {[%clk 0:00:02.9]} 61... Ke5 {[%clk 0:01:18.1]} 62.
Ne7 {[%clk 0:00:03.1]} 62... Nc3 {[%clk 0:01:17.2]} 63. Nc6+ {[%clk 0:00:03.2]}
63... Kxd5 {[%clk 0:01:16.3]} 64. Nb4+ {[%clk 0:00:03.9]} 64... Kc4 {[%clk
0:01:16]} 65. Nxa6 {[%clk 0:00:04.8]} 65... d5 {[%clk 0:01:16.3]} 66. Nc7 {[%clk
0:00:05.5]} 66... d4+ {[%clk 0:01:16.5]} 67. Kd2 {[%clk 0:00:05.9]} 67... e3+
{[%clk 0:01:15.6]} 68. Ke1 {[%clk 0:00:06]} 68... d3 {[%clk 0:01:16]} 69. a6
{[%clk 0:00:06]} 69... d2+ {[%clk 0:01:16.5]} 70. Kf1 {[%clk 0:00:05.8]} 70...
d1=Q+ {[%clk 0:01:16.9]} 71. Kg2 {[%clk 0:00:06.7]} 71... Qg4+ {[%clk
0:01:16.8]} 0-1

[Event "Late-Titled-Tuesday-Blitz-June-18-2024"]
[Site "Chess.com"]
[Date "2024.06.18"]
[Round "1"]
[White "Rakitic2010"]
[Black "yoursillykitten"]
[Result "0-1"]
[WhiteElo "2478"]
[BlackElo "2849"]
[TimeControl "180+1"]
[EndTime "14:07:38 PDT"]
[Termination "yoursillykitten won by checkmate"]

1. e4 {[%clk 0:03:00.9]} 1... d5 {[%clk 0:02:52.2]} 2. exd5 {[%clk 0:03:00.1]}
2... Nf6 {[%clk 0:02:52.3]} 3. Nc3 {[%clk 0:02:53.8]} 3... Nxd5 {[%clk
0:02:47.3]} 4. Nxd5 {[%clk 0:02:52.6]} 4... Qxd5 {[%clk 0:02:47]} 5. Qf3 {[%clk
0:02:53.2]} 5... c6 {[%clk 0:02:47.2]} 6. Qxd5 {[%clk 0:02:50.6]} 6... cxd5
{[%clk 0:02:48.1]} 7. d4 {[%clk 0:02:51.1]} 7... Nc6 {[%clk 0:02:46.8]} 8. c3
{[%clk 0:02:51.2]} 8... Bf5 {[%clk 0:02:43.7]} 9. Nf3 {[%clk 0:02:46.5]} 9... e6
{[%clk 0:02:41.5]} 10. Bf4 {[%clk 0:02:45.3]} 10... f6 {[%clk 0:02:19.3]} 11.
Kd2 {[%clk 0:02:32.3]} 11... g5 {[%clk 0:02:15]} 12. Bg3 {[%clk 0:02:27.7]}
12... h5 {[%clk 0:02:15]} 13. h4 {[%clk 0:02:21]} 13... g4 {[%clk 0:02:14.9]}
14. Ne1 {[%clk 0:02:13.4]} 14... Bh6+ {[%clk 0:01:48]} 15. Kd1 {[%clk
0:02:12.1]} 15... e5 {[%clk 0:01:39.6]} 16. dxe5 {[%clk 0:02:06.8]} 16... fxe5
{[%clk 0:01:37]} 17. Bb5 {[%clk 0:01:52.8]} 17... O-O {[%clk 0:01:23.2]} 18.
Bxc6 {[%clk 0:01:32]} 18... bxc6 {[%clk 0:01:23.6]} 19. Bxe5 {[%clk 0:01:32.9]}
19... c5 {[%clk 0:01:17]} 20. Bd6 {[%clk 0:01:23.8]} 20... Rfc8 {[%clk
0:01:12.5]} 21. Nc2 {[%clk 0:01:22.3]} 21... Rc6 {[%clk 0:01:05.1]} 22. Be7
{[%clk 0:01:19.6]} 22... Be4 {[%clk 0:00:54.8]} 23. Bg5 {[%clk 0:01:08.7]} 23...
Bxg2 {[%clk 0:00:48.8]} 24. Rh2 {[%clk 0:01:07.2]} 24... Bf3+ {[%clk 0:00:48.3]}
25. Kd2 {[%clk 0:01:06.9]} 25... Bg7 {[%clk 0:00:36.2]} 26. Ne1 {[%clk
0:00:52.4]} 26... Be4 {[%clk 0:00:34.5]} 27. f3 {[%clk 0:00:45.9]} 27... gxf3
{[%clk 0:00:25.5]} 28. Rf2 {[%clk 0:00:42.1]} 28... Rf8 {[%clk 0:00:25.5]} 29.
Nd3 {[%clk 0:00:35]} 29... Kh7 {[%clk 0:00:17.8]} 30. Nf4 {[%clk 0:00:26.7]}
30... Be5 {[%clk 0:00:13.4]} 31. Nxh5 {[%clk 0:00:24.4]} 31... Bg6 {[%clk
0:00:13.8]} 32. Re1 {[%clk 0:00:21.7]} 32... Rf5 {[%clk 0:00:08.3]} 33. Rxe5
{[%clk 0:00:10]} 33... Rxe5 {[%clk 0:00:09.2]} 34. Nf6+ {[%clk 0:00:10.5]} 34...
Kg7 {[%clk 0:00:10]} 35. Rxf3 {[%clk 0:00:10.7]} 35... d4 {[%clk 0:00:05.9]} 36.
Nd7 {[%clk 0:00:06.9]} 36... Rf5 {[%clk 0:00:05.7]} 37. Bf6+ {[%clk 0:00:05.3]}
37... Rcxf6 {[%clk 0:00:05.6]} 38. Rg3 {[%clk 0:00:03.6]} 38... Rf2+ {[%clk
0:00:06]} 39. Kc1 {[%clk 0:00:04]} 39... Rf1+ {[%clk 0:00:05.9]} 40. Kd2 {[%clk
0:00:04]} 40... R6f2# {[%clk 0:00:06.8]} 0-1

[Event "Late-Titled-Tuesday-Blitz-June-18-2024"]
[Site "Chess.com"]
[Date "2024.06.18"]
[Round "1"]
[White "Maus7"]
[Black "ritanovikova"]
[Result "1-0"]
[WhiteElo "2592"]
[BlackElo "2200"]
[TimeControl "180+1"]
[EndTime "14:07:38 PDT"]
[Termination "Maus7 won by checkmate"]

1. e4 {[%clk 0:02:59.5]} 1... e5 {[%clk 0:02:58.1]} 2. Nf3 {[%clk 0:02:59.3]}
2... Nf6 {[%clk 0:02:58.3]} 3. Nxe5 {[%clk 0:02:58.8]} 3... d6 {[%clk
0:02:58.7]} 4. Nf3 {[%clk 0:02:59.5]} 4... Nxe4 {[%clk 0:02:59.2]} 5. Nc3 {[%clk
0:03:00.4]} 5... Nxc3 {[%clk 0:02:58.6]} 6. dxc3 {[%clk 0:03:01.3]} 6... Bf5
{[%clk 0:02:57.3]} 7. Be3 {[%clk 0:02:54.7]} 7... Be7 {[%clk 0:02:53.4]} 8. Nd4
{[%clk 0:02:52]} 8... Bg6 {[%clk 0:02:52.2]} 9. Bd3 {[%clk 0:02:39.1]} 9... O-O
{[%clk 0:02:50.2]} 10. h4 {[%clk 0:02:37.1]} 10... Bxh4 {[%clk 0:02:37.7]} 11.
Qg4 {[%clk 0:02:34.2]} 11... Bf6 {[%clk 0:02:15.2]} 12. Bxg6 {[%clk 0:02:30.1]}
12... fxg6 {[%clk 0:02:00.9]} 13. Ne6 {[%clk 0:02:15.4]} 13... Qd7 {[%clk
0:01:57.7]} 14. Qh3 {[%clk 0:02:15.6]} 14... Re8 {[%clk 0:01:48.5]} 15. Qxh7+
{[%clk 0:02:14.3]} 15... Kf7 {[%clk 0:01:48.4]} 16. Nf4 {[%clk 0:01:44.8]} 16...
Qf5 {[%clk 0:01:43.8]} 17. O-O-O {[%clk 0:01:38.6]} 17... Nd7 {[%clk 0:01:37.2]}
18. Rh6 {[%clk 0:01:23.3]} 18... Nf8 {[%clk 0:01:28.6]} 19. Qh8 {[%clk
0:01:18.3]} 19... gxh6 {[%clk 0:01:22.3]} 20. Qxh6 {[%clk 0:01:19.2]} 20... Bg5
{[%clk 0:01:17.8]} 21. Qh2 {[%clk 0:01:17.6]} 21... Bxf4 {[%clk 0:01:00.8]} 22.
Bxf4 {[%clk 0:01:18.5]} 22... Ne6 {[%clk 0:00:53.6]} 23. Qh7+ {[%clk 0:01:10.7]}
23... Kf6 {[%clk 0:00:35.8]} 24. Be3 {[%clk 0:01:06.5]} 24... Rh8 {[%clk
0:00:32.1]} 25. Qd7 {[%clk 0:01:05.6]} 25... Rad8 {[%clk 0:00:29.1]} 26. Qa4
{[%clk 0:01:04.6]} 26... a6 {[%clk 0:00:26.1]} 27. g4 {[%clk 0:01:04.1]} 27...
Qf3 {[%clk 0:00:21.7]} 28. g5+ {[%clk 0:00:56.6]} 28... Kf7 {[%clk 0:00:21.4]}
29. b3 {[%clk 0:00:35.6]} 29... Rh1 {[%clk 0:00:21]} 30. Rxh1 {[%clk 0:00:35.3]}
30... Qxh1+ {[%clk 0:00:21.9]} 31. Kb2 {[%clk 0:00:36]} 31... Qf3 {[%clk
0:00:21.3]} 32. Qh4 {[%clk 0:00:32.1]} 32... Kg7 {[%clk 0:00:18.9]} 33. Qh6+
{[%clk 0:00:31.6]} 33... Kf7 {[%clk 0:00:16.9]} 34. Qh7+ {[%clk 0:00:31.5]}
34... Ke8 {[%clk 0:00:14.3]} 35. Qxg6+ {[%clk 0:00:28.8]} 35... Qf7 {[%clk
0:00:14.8]} 36. Qe4 {[%clk 0:00:27.4]} 36... c6 {[%clk 0:00:13.3]} 37. g6 {[%clk
0:00:25]} 37... Qg8 {[%clk 0:00:12]} 38. f4 {[%clk 0:00:20.4]} 38... d5 {[%clk
0:00:09.6]} 39. Qe5 {[%clk 0:00:20.5]} 39... Kd7 {[%clk 0:00:08.3]} 40. f5
{[%clk 0:00:20.5]} 40... Re8 {[%clk 0:00:05.6]} 41. Bb6 {[%clk 0:00:17.5]} 41...
Nd8 {[%clk 0:00:01.3]} 42. Qc7# {[%clk 0:00:16.9]} 1-0

[Event "Late-Titled-Tuesday-Blitz-June-18-2024"]
[Site "Chess.com"]
[Date "2024.06.18"]
[Round "1"]
[White "yaguigor"]
[Black "divudis17"]
[Result "1-0"]
[WhiteElo "2651"]
[BlackElo "2346"]
[TimeControl "180+1"]
[EndTime "14:07:42 PDT"]
[Termination "yaguigor won by resignation"]

1. Nf3 {[%clk 0:02:55.8]} 1... Nf6 {[%clk 0:02:58.8]} 2. c4 {[%clk 0:02:55.1]}
2... c5 {[%clk 0:02:44.7]} 3. Nc3 {[%clk 0:02:54.6]} 3... Nc6 {[%clk 0:02:40.9]}
4. d4 {[%clk 0:02:53.5]} 4... cxd4 {[%clk 0:02:32.9]} 5. Nxd4 {[%clk 0:02:54.4]}
5... e6 {[%clk 0:02:32.7]} 6. a3 {[%clk 0:02:50.6]} 6... d5 {[%clk 0:02:26.3]}
7. cxd5 {[%clk 0:02:31]} 7... Nxd5 {[%clk 0:02:21.8]} 8. Nxc6 {[%clk 0:02:29.5]}
8... bxc6 {[%clk 0:02:20.1]} 9. Qc2 {[%clk 0:02:26.8]} 9... Be7 {[%clk
0:02:08.4]} 10. Bd2 {[%clk 0:02:23.8]} 10... O-O {[%clk 0:02:07.2]} 11. e4
{[%clk 0:02:20.3]} 11... Nxc3 {[%clk 0:02:00.3]} 12. Bxc3 {[%clk 0:02:21.2]}
12... Qb6 {[%clk 0:02:00.6]} 13. Bd3 {[%clk 0:02:08.4]} 13... Ba6 {[%clk
0:01:57.6]} 14. O-O {[%clk 0:02:05.5]} 14... Rfd8 {[%clk 0:01:58]} 15. Rfd1
{[%clk 0:02:00.2]} 15... Bxd3 {[%clk 0:01:52.4]} 16. Rxd3 {[%clk 0:01:59.9]}
16... Rxd3 {[%clk 0:01:49.4]} 17. Qxd3 {[%clk 0:01:59.3]} 17... Rd8 {[%clk
0:01:49.8]} 18. Qg3 {[%clk 0:01:59.2]} 18... Bf8 {[%clk 0:01:48.6]} 19. Re1
{[%clk 0:01:52]} 19... Qb3 {[%clk 0:01:36.6]} 20. Qf3 {[%clk 0:01:48.5]} 20...
Qc2 {[%clk 0:01:20.6]} 21. e5 {[%clk 0:01:39]} 21... Rd3 {[%clk 0:00:43.8]} 22.
Qxc6 {[%clk 0:01:25.4]} 22... Rd1 {[%clk 0:00:43.4]} 23. Qb5 {[%clk 0:01:25]}
23... Rxe1+ {[%clk 0:00:33.2]} 24. Bxe1 {[%clk 0:01:23.9]} 24... Qb1 {[%clk
0:00:26.8]} 25. Kf1 {[%clk 0:01:22]} 25... Bxa3 {[%clk 0:00:27.1]} 26. Qb8+
{[%clk 0:01:09.8]} 26... Bf8 {[%clk 0:00:26.9]} 27. h3 {[%clk 0:01:02.3]} 27...
h5 {[%clk 0:00:22.4]} 28. h4 {[%clk 0:00:37.2]} 28... Qd3+ {[%clk 0:00:19.6]}
29. Kg1 {[%clk 0:00:35.9]} 29... Qe4 {[%clk 0:00:18.6]} 30. Bc3 {[%clk
0:00:32.5]} 30... a6 {[%clk 0:00:10.5]} 31. Qd8 {[%clk 0:00:28.3]} 31... Qb1+
{[%clk 0:00:06.9]} 32. Kh2 {[%clk 0:00:27.4]} 32... Qe4 {[%clk 0:00:07.3]} 33.
Bd4 {[%clk 0:00:21.2]} 33... Qf4+ {[%clk 0:00:07]} 34. g3 {[%clk 0:00:20.7]}
34... Qd2 {[%clk 0:00:06.1]} 35. Kg2 {[%clk 0:00:15.9]} 35... Qd3 {[%clk
0:00:05.9]} 36. Qb6 {[%clk 0:00:08.7]} 36... Qe4+ {[%clk 0:00:05.7]} 37. Kh2
{[%clk 0:00:08.5]} 37... Qd3 {[%clk 0:00:06]} 38. Be3 {[%clk 0:00:05]} 38... Qb5
{[%clk 0:00:03.4]} 39. Qd8 {[%clk 0:00:04.4]} 39... Qb3 {[%clk 0:00:01.8]} 40.
Bc5 {[%clk 0:00:03.3]} 40... Qxb2 {[%clk 0:00:01.9]} 41. Qxf8+ {[%clk
0:00:02.9]} 41... Kh7 {[%clk 0:00:02.8]} 42. Qxf7 {[%clk 0:00:03.3]} 1-0

[Event "Late-Titled-Tuesday-Blitz-June-18-2024"]
[Site "Chess.com"]
[Date "2024.06.18"]
[Round "1"]
[White "Ykow"]
[Black "Bigfish1995"]
[Result "1/2-1/2"]
[WhiteElo "2536"]
[BlackElo "3099"]
[TimeControl "180+1"]
[EndTime "14:07:47 PDT"]
[Termination "Game drawn by repetition"]

1. e4 {[%clk 0:02:58.8]} 1... d6 {[%clk 0:02:54.3]} 2. d4 {[%clk 0:02:58.4]}
2... g6 {[%clk 0:02:54.7]} 3. Nc3 {[%clk 0:02:57.1]} 3... Bg7 {[%clk 0:02:54.4]}
4. f4 {[%clk 0:02:57.6]} 4... Nf6 {[%clk 0:02:51.8]} 5. Nf3 {[%clk 0:02:54.9]}
5... Nc6 {[%clk 0:02:48.8]} 6. h3 {[%clk 0:02:34.3]} 6... O-O {[%clk 0:02:40.3]}
7. Be3 {[%clk 0:02:33.6]} 7... e5 {[%clk 0:02:39.5]} 8. fxe5 {[%clk 0:02:32.3]}
8... dxe5 {[%clk 0:02:36.6]} 9. d5 {[%clk 0:02:33.2]} 9... Nd4 {[%clk
0:02:20.2]} 10. Nxd4 {[%clk 0:01:57.6]} 10... exd4 {[%clk 0:01:56.5]} 11. Qxd4
{[%clk 0:01:57.1]} 11... Re8 {[%clk 0:01:40.4]} 12. e5 {[%clk 0:01:44.1]} 12...
Nd7 {[%clk 0:01:39.8]} 13. O-O-O {[%clk 0:01:44.4]} 13... Nxe5 {[%clk
0:01:37.9]} 14. Qd2 {[%clk 0:01:45]} 14... a6 {[%clk 0:01:32.2]} 15. Kb1 {[%clk
0:01:38.7]} 15... Qd6 {[%clk 0:01:31.3]} 16. Ne4 {[%clk 0:01:32.9]} 16... Nc4
{[%clk 0:01:23.7]} 17. Nxd6 {[%clk 0:01:30.8]} 17... Nxd2+ {[%clk 0:01:23.9]}
18. Bxd2 {[%clk 0:01:31.7]} 18... cxd6 {[%clk 0:01:24.3]} 19. Bf4 {[%clk
0:01:28.2]} 19... Be5 {[%clk 0:01:23.9]} 20. Re1 {[%clk 0:01:24.1]} 20... Bf5
{[%clk 0:01:19.4]} 21. Bxe5 {[%clk 0:01:24.2]} 21... Rxe5 {[%clk 0:01:20.3]} 22.
Rxe5 {[%clk 0:01:24.1]} 22... dxe5 {[%clk 0:01:21.2]} 23. Bc4 {[%clk 0:01:17]}
23... Rd8 {[%clk 0:01:13.4]} 24. Re1 {[%clk 0:01:16.8]} 24... f6 {[%clk
0:01:05.9]} 25. a4 {[%clk 0:01:16.9]} 25... h5 {[%clk 0:01:02.6]} 26. b4 {[%clk
0:01:16.5]} 26... Kf8 {[%clk 0:00:51.5]} 27. Kb2 {[%clk 0:01:14.4]} 27... Ke7
{[%clk 0:00:47]} 28. Bb3 {[%clk 0:01:14.5]} 28... b5 {[%clk 0:00:46.2]} 29. axb5
{[%clk 0:01:12]} 29... axb5 {[%clk 0:00:47.1]} 30. Ra1 {[%clk 0:01:00.2]} 30...
Be4 {[%clk 0:00:47]} 31. Ra7+ {[%clk 0:00:52.2]} 31... Rd7 {[%clk 0:00:47.1]}
32. Ra5 {[%clk 0:00:49.7]} 32... Bxg2 {[%clk 0:00:39.2]} 33. Rxb5 {[%clk
0:00:49.2]} 33... Bxh3 {[%clk 0:00:38.6]} 34. c4 {[%clk 0:00:48.6]} 34... Bg2
{[%clk 0:00:32.8]} 35. Rb8 {[%clk 0:00:25]} 35... h4 {[%clk 0:00:21.6]} 36. Rh8
{[%clk 0:00:24.6]} 36... h3 {[%clk 0:00:20.6]} 37. c5 {[%clk 0:00:24.4]} 37...
Bxd5 {[%clk 0:00:16]} 38. Rh7+ {[%clk 0:00:17.5]} 38... Ke6 {[%clk 0:00:07.2]}
39. Rxd7 {[%clk 0:00:18.4]} 39... Kxd7 {[%clk 0:00:07.6]} 40. Bxd5 {[%clk
0:00:19.3]} 40... f5 {[%clk 0:00:08.2]} 41. Bh1 {[%clk 0:00:13.3]} 41... e4
{[%clk 0:00:07.6]} 42. Kc3 {[%clk 0:00:07.9]} 42... g5 {[%clk 0:00:08.2]} 43.
Kd4 {[%clk 0:00:06.2]} 43... g4 {[%clk 0:00:08.8]} 44. b5 {[%clk 0:00:03.7]}
44... g3 {[%clk 0:00:08.8]} 45. Ke3 {[%clk 0:00:04.6]} 45... g2 {[%clk
0:00:08.9]} 46. Bxg2 {[%clk 0:00:04.6]} 46... hxg2 {[%clk 0:00:09.8]} 47. Kf2
{[%clk 0:00:05.4]} 47... f4 {[%clk 0:00:05.3]} 48. Kxg2 {[%clk 0:00:05.6]} 48...
Kc7 {[%clk 0:00:05.2]} 49. Kf2 {[%clk 0:00:05.5]} 49... Kb7 {[%clk 0:00:05.6]}
50. Ke2 {[%clk 0:00:06.1]} 50... Kc7 {[%clk 0:00:06.2]} 51. Kf2 {[%clk
0:00:06.7]} 51... Kb7 {[%clk 0:00:06.8]} 52. Ke2 {[%clk 0:00:07.4]} 52... Kc7
{[%clk 0:00:07.7]} 53. Kf2 {[%clk 0:00:08]} 1/2-1/2